bitfinex-derivatives/quotes_SOLF0:USTF0_20241009
["timestamp","ask_amount","ask_price","bid_price","bid_amount"]
[1728441204855,3.4699,144.16,144.12,18.4118]
[1728441205856,10.65,144.18,144.12,18.4118]
[1728441206267,3.4698,144.17,144.12,18.4118]
[1728441206467,10.65,144.18,144.12,18.4118]
[1728441207470,10.65,144.18,144.12,21.8825]
[1728441208174,3.47,144.16,144.13,3.4706]
[1728441209869,3.47,144.16,144.12,18.4118]
[1728441210068,3.47,144.16,144.12,21.8825]
[1728441213370,5.04,144.19,144.12,18.4118]
[1728441213569,10.65,144.18,144.12,18.4118]
[1728441213779,10.65,144.17,144.12,18.4118]
[1728441214077,3.4702,144.15,144.12,21.8825]
[1728441215179,3.47,144.16,144.12,7.7618]
[1728441215372,10.65,144.17,144.12,7.7618]
[1728441216068,3.47,144.16,144.13,3.4706]
[1728441217566,10.65,144.17,144.12,2.7218]
[1728441217774,10.65,144.14,144.11,0.12502]
[1728441219386,3.4708,144.12,144.11,0.12502]
[1728441220786,14.1208,144.12,144.11,0.12502]
[1728441221376,19.1408,144.12,144.11,0.12502]
[1728441222379,19.1408,144.12,144.11,1e-08]
[1728441223183,15.67,144.12,144.05,0.12502]
[1728441223385,10.65,144.08,144.05,0.12502]
[1728441223896,3.4723,144.06,144.05,0.12502]
[1728441224183,5.02,144.09,144.05,0.12502]
[1728441224383,14.1223,144.06,144.05,0.12502]
[1728441227288,5.02,144.09,144.05,0.12502]
[1728441227482,10.65,144.08,144.05,0.12502]
[1728441227683,10.65,144.07,144.05,0.12502]
[1728441228183,3.46407164,144.08,144.05,0.12502]
[1728441228485,10.65,144.07,144.05,0.12502]
[1728441229285,14.1222,144.07,144.05,0.12502]
[1728441229492,10.65,144.06,144.05,0.12502]
[1728441229786,14.1223,144.06,144.05,0.12502]
[1728441231795,5.02,144.09,144.05,0.12502]
[1728441231992,10.65,144.08,144.05,0.12502]
[1728441232193,3.4721,144.07,144.05,0.12502]
[1728441232895,10.65,144.06,144.05,0.12502]
[1728441234408,14.1223,144.06,144.05,0.12502]
[1728441235001,10.65,144.06,144.05,0.12502]
[1728441235193,8.55178354,144.09,144.05,0.12502]
[1728441235397,3.4719,144.08,144.05,0.12502]
[1728441235697,10.65,144.06,144.05,0.12502]
[1728441237294,14.1223,144.06,144.05,0.12502]
[1728441238701,3.4722,144.07,144.05,0.12502]
[1728441238893,10.65,144.06,144.05,0.12502]
[1728441239501,14.1223,144.06,144.05,0.12502]
[1728441240588,8.55178354,144.09,144.05,0.12502]
[1728441240801,14.122,144.07,144.05,0.12502]
[1728441241001,10.65,144.07,144.05,0.12502]
[1728441241391,14.1223,144.07,144.05,0.12502]
[1728441242900,10.65,144.07,144.05,0.12502]
[1728441243102,10.65,144.07,144.05,3.59752]
[1728441243299,10.65,144.07,144.05,0.12502]
[1728441245106,10.65,144.08,144.05,3.59742]
[1728441253209,14.1218,144.08,144.05,3.59742]
[1728441255020,14.1218,144.08,144.05,0.12502]
[1728441255816,10.65,144.07,144.05,0.12502]
[1728441256012,14.1221,144.07,144.05,0.12502]
[1728441256207,10.65,144.07,144.05,0.12502]
[1728441257204,14.1222,144.07,144.05,0.12502]
[1728441258413,3.4723,144.06,144.05,0.12502]
[1728441258716,5.04,144.09,144.05,0.12502]
[1728441259016,15.69,144.09,144.05,0.12502]
[1728441259209,3.4719,144.08,144.05,3.59752]
[1728441259411,5.04,144.09,144.05,0.12502]
[1728441259618,15.69,144.09,144.05,0.12502]
[1728441259916,19.1617,144.09,144.05,3.59752]
[1728441260114,15.69,144.09,144.05,3.59752]
[1728441261513,3.4718,144.08,144.05,3.59752]
[1728441262611,15.69,144.09,144.05,3.59752]
[1728441262812,19.1617,144.09,144.05,3.59752]
[1728441263617,14.1217,144.09,144.05,3.59752]
[1728441264413,3.4718,144.08,144.05,3.59752]
[1728441264814,3.4718,144.08,144.05,0.12502]
[1728441267217,14.1218,144.08,144.05,0.12502]
[1728441269620,3.4718,144.08,144.05,0.12502]
[1728441272320,14.1218,144.08,144.05,0.12502]
[1728441274021,3.4723,144.06,144.05,0.12502]
[1728441276216,15.69,144.08,144.05,0.12502]
[1728441276416,3.4722,144.07,144.05,0.12502]
[1728441277020,19.162,144.08,144.05,0.12502]
[1728441277214,15.69,144.08,144.05,0.12502]
[1728441278628,3.4721,144.07,144.05,0.12502]
[1728441285330,3.4719,144.08,144.05,0.12502]
[1728441285731,5.04,144.09,144.05,0.12502]
[1728441285732,5.04,144.09,144.05,10.77502]
[1728441286234,5.04,144.09,144.05,3.59742]
[1728441286434,8.5116,144.09,144.05,0.12502]
[1728441287227,3.4716,144.09,144.05,0.12502]
[1728441287533,3.4716,144.09,144.06,3.4722]
[1728441288734,97.17859878,144.1,144.07,3.472]
[1728441291930,111.29999878,144.1,144.07,3.472]
[1728441292334,111.29999878,144.1,144.06,14.1222]
[1728441293131,3.4714,144.1,144.06,10.65]
[1728441293438,3.4723,144.06,144.05,0.12502]
[1728441293632,3.4723,144.06,143.99,0.12502]
[1728441293633,19.1875086,144.06,143.99,0.12502]
[1728441293837,10.65,144.04,143.99,0.12502]
[1728441294140,14.06127512,144.04,143.99,0.12502]
[1728441294545,10.65,144.04,143.99,0.12502]
[1728441295541,3.4731,144.03,143.99,0.12502]
[1728441295844,19.13294857,144.06,144.01,10.65]
[1728441296239,3.4727,144.05,144.01,10.65]
[1728441298449,3.4727,144.05,144.0,14.1237]
[1728441298647,14.1227,144.05,144.0,14.1237]
[1728441299752,3.4727,144.05,144.01,10.65]
[1728441299947,5.02,144.06,144.01,14.1235]
[1728441300251,8.4924,144.06,144.01,14.1235]
[1728441300647,8.4924,144.06,144.02,3.4732]
[1728441301045,3.4724,144.06,144.02,3.4732]
[1728441301247,3.4721,144.07,144.03,10.65]
[1728441301749,116.28745176,144.08,144.03,10.65]
[1728441302051,3.4723,144.06,144.03,10.65]
[1728441303256,3.4721,144.07,144.03,14.123]
[1728441303553,116.28745176,144.08,144.03,10.65]
[1728441304143,105.63745176,144.08,144.03,10.65]
[1728441304356,116.28745176,144.08,144.03,10.65]
[1728441304746,3.4722,144.07,144.03,14.1228]
[1728441305049,105.63745176,144.08,144.04,10.65]
[1728441305450,3.4721,144.07,144.04,14.1227]
[1728441306050,100.66358601,144.08,144.04,14.1227]
[1728441306953,3.4719,144.08,144.05,10.65]
[1728441308558,3.40005455,144.09,144.04,3.4727]
[1728441308559,3.4721,144.07,144.04,3.4727]
[1728441308757,3.4721,144.07,144.04,14.1227]
[1728441308961,3.4721,144.07,144.04,10.65]
[1728441309553,3.4721,144.07,144.04,14.1228]
[1728441309757,3.4718,144.08,144.05,10.65]
[1728441310458,3.4750481,144.09,144.04,3.4728]
[1728441310654,3.472,144.07,144.04,14.1228]
[1728441310961,14.1250481,144.09,144.04,14.1228]
[1728441311654,3.4719,144.08,144.04,14.1228]
[1728441317658,14.1250481,144.09,144.04,10.65]
[1728441318259,3.4718,144.08,144.04,14.1226]
[1728441319667,3.4750481,144.09,144.04,10.65]
[1728441319873,0.12502,144.11,144.08,10.65]
[1728441320075,0.12502,144.11,144.1,10.65]
[1728441322862,3.4703,144.15,144.1,10.65]
[1728441323062,10.65,144.16,144.11,10.65]
[1728441323566,3.4704,144.14,144.11,10.65]
[1728441324264,3.4702,144.15,144.11,10.65]
[1728441325369,3.47,144.16,144.12,3.4708]
[1728441325570,3.47,144.16,144.12,14.1208]
[1728441328775,3.4701,144.15,144.12,10.65]
[1728441328976,10.77502,144.17,144.11,15.67]
[1728441329578,3.4703,144.15,144.11,19.1411]
[1728441329966,3.4703,144.15,144.11,14.1211]
[1728441330876,3.4703,144.15,144.12,10.65]
[1728441331273,10.77502,144.17,144.12,10.65]
[1728441331577,10.77502,144.17,144.11,2.7136]
[1728441331880,10.77502,144.17,144.11,13.3636]
[1728441332467,10.77502,144.17,144.11,18.3836]
[1728441332673,3.4703,144.15,144.11,21.8545]
[1728441333086,10.77502,144.17,144.11,2.7136]
[1728441333377,10.65,144.15,144.1,10.65]
[1728441333772,15.67,144.15,144.1,10.65]
[1728441333978,3.4708,144.13,144.1,10.65]
[1728441335571,3.4705,144.14,144.1,14.1213]
[1728441336072,5.02,144.15,144.11,10.65]
[1728441336278,8.4903,144.15,144.11,14.121]
[1728441336476,5.02,144.15,144.11,10.65]
[1728441336674,3.4704,144.14,144.11,10.65]
[1728441337779,8.4903,144.15,144.11,14.121]
[1728441338374,5.02,144.15,144.11,10.65]
[1728441338972,0.12502,144.17,144.14,10.65]
[1728441339176,0.12502,144.17,144.15,10.65]
[1728441340486,3.59482,144.17,144.15,10.65]
[1728441341686,3.4704,144.14,144.12,2.7338]
[1728441341980,15.79502,144.17,144.12,2.7338]
[1728441342182,15.79502,144.17,144.12,13.3838]
[1728441343485,3.4703,144.15,144.12,13.3838]
[1728441346086,3.47,144.16,144.12,13.3838]
[1728441350281,15.79502,144.17,144.12,13.3838]
[1728441350483,3.4703,144.15,144.12,13.3838]
[1728441359098,5.14502,144.17,144.12,2.7338]
[1728441359301,15.79502,144.17,144.11,10.65]
[1728441359893,3.4708,144.13,144.09,14.1215]
[1728441360601,3.4708,144.13,144.08,58.58478269]
[1728441360602,3.47,144.16,144.12,14.1208]
[1728441360904,5.14502,144.17,144.13,10.65]
[1728441361295,3.4701,144.16,144.13,10.65]
[1728441361494,0.12502,144.17,144.15,10.65]
[1728441365208,0.12502,144.17,144.13,2.8022]
[1728441365502,0.12502,144.17,144.13,13.4522]
[1728441365801,0.12502,144.17,144.14,10.65]
[1728441366895,3.59482,144.17,144.14,10.65]
[1728441367096,0.12502,144.17,144.13,13.4522]
[1728441367998,3.47,144.16,144.13,13.4522]
[1728441369509,3.47,144.16,144.13,16.9228]
[1728441370507,3.4701,144.15,144.13,13.4522]
[1728441373512,0.12502,144.17,144.13,13.4522]
[1728441373714,3.4699,144.16,144.14,10.65]
[1728441374514,3.59482,144.17,144.14,10.65]
[1728441374809,3.59482,144.17,144.14,14.1203]
[1728441374810,0.12502,144.17,144.14,14.1203]
[1728441376515,3.59482,144.17,144.13,6.2728]
[1728441376717,0.12502,144.17,144.13,13.4522]
[1728441377314,3.4699,144.16,144.13,13.4522]
[1728441377904,3.59472,144.17,144.13,16.9226]
[1728441379508,10.77502,144.17,144.1,15.69]
[1728441379715,10.65,144.16,144.1,10.65]
[1728441380414,15.69,144.16,144.09,13.4182]
[1728441380902,10.65,144.14,144.09,2.7682]
[1728441381308,3.4711,144.12,144.09,2.7682]
[1728441381907,5.04,144.13,144.09,13.4182]
[1728441382106,8.5107,144.13,144.09,16.8897]
[1728441382313,8.5107,144.13,144.09,13.4182]
[1728441383215,5.04,144.13,144.09,13.4182]
[1728441383415,3.4711,144.11,144.09,13.4182]
[1728441383815,3.4711,144.11,144.09,2.7682]
[1728441384116,3.4713,144.1,144.09,2.7682]
[1728441385109,3.4713,144.1,144.08,10.65]
[1728441387414,3.4713,144.1,144.07,12.0674]
[1728441387720,15.69,144.13,144.07,10.65]
[1728441387721,3.4717,144.09,144.07,10.65]
[1728441392218,3.43960929,144.11,144.07,10.65]
[1728441392519,5.04,144.13,144.1,10.65]
[1728441393423,3.471,144.12,144.1,10.65]
[1728441393624,5.04,144.13,144.1,10.65]
[1728441394225,8.5108,144.13,144.1,10.65]
[1728441396224,10.65,144.15,144.1,10.65]
[1728441396420,3.4709,144.12,144.1,10.65]
[1728441396727,3.4709,144.12,144.08,14.1217]
[1728441396925,3.4711,144.11,144.08,10.65]
[1728441397726,3.4713,144.1,144.08,10.65]
[1728441398126,15.69,144.14,144.08,10.65]
[1728441398327,3.4712,144.11,144.08,10.65]
[1728441398529,6.85909174,144.11,144.08,10.65]
[1728441398828,3.4707,144.13,144.09,3.4715]
[1728441399018,15.69,144.14,144.09,3.4715]
[1728441399222,15.69,144.14,144.08,10.65]
[1728441399827,3.471,144.12,144.08,14.1217]
[1728441400126,15.69,144.14,144.08,14.1217]
[1728441401027,3.4708,144.13,144.08,14.1217]
[1728441401328,15.69,144.14,144.08,14.1217]
[1728441402425,3.4711,144.12,144.08,14.1217]
[1728441402630,15.69,144.14,144.08,14.1217]
[1728441404226,15.69,144.14,144.09,3.4713]
[1728441404423,5.04,144.14,144.09,3.4713]
[1728441405324,3.4709,144.12,144.08,14.1217]
[1728441405826,5.04,144.14,144.1,10.65]
[1728441406031,3.4707,144.13,144.1,10.65]
[1728441408835,3.4707,144.13,144.09,14.1214]
[1728441409836,5.04,144.14,144.09,10.65]
[1728441410131,3.4709,144.12,144.09,10.65]
[1728441415032,3.4709,144.12,144.09,14.1216]
[1728441416541,3.4709,144.12,144.09,10.65]
[1728441418035,3.4711,144.11,144.09,10.65]
[1728441420040,3.4709,144.12,144.09,10.65]
[1728441420542,5.04,144.14,144.09,10.65]
[1728441420741,3.4705,144.14,144.11,10.65]
[1728441420945,5.06,144.16,144.11,10.65]
[1728441421138,5.06,144.16,144.11,14.121]
[1728441421339,3.4703,144.15,144.11,14.121]
[1728441422839,3.4703,144.15,144.12,2.8028]
[1728441423243,5.18502,144.17,144.13,10.65]
[1728441423737,8.65482,144.17,144.13,14.1205]
[1728441423944,3.59482,144.17,144.13,14.1205]
[1728441425637,0.12502,144.17,144.13,10.65]
[1728441426751,3.59472,144.17,144.13,14.1205]
[1728441426946,3.59472,144.17,144.14,10.65]
[1728441427147,0.12502,144.17,143.99,29.58104959]
[1728441427453,10.65,144.16,144.1,10.65]
[1728441428551,3.4704,144.14,144.1,14.1213]
[1728441429343,3.4704,144.14,144.1,10.65]
[1728441429745,10.65,144.16,144.1,10.65]
[1728441429948,10.65,144.13,144.06,4.0309]
[1728441430149,3.4713,144.11,144.08,5.06]
[1728441430352,10.65,144.13,144.08,5.06]
[1728441430651,3.4713,144.11,144.08,5.06]
[1728441431552,3.4712,144.11,144.09,10.65]
[1728441431750,5.06,144.16,144.09,10.65]
[1728441431953,10.65,144.15,144.09,10.65]
[1728441432149,3.4707,144.13,144.09,14.1215]
[1728441432652,3.4707,144.13,144.09,10.65]
[1728441433445,3.4707,144.13,144.1,10.65]
[1728441434757,3.4709,144.12,144.09,10.65]
[1728441439961,3.4709,144.12,144.09,14.1216]
[1728441440360,3.4707,144.13,144.09,14.1216]
[1728441440766,3.4707,144.13,144.1,10.65]
[1728441442868,15.71,144.16,144.1,10.65]
[1728441443069,3.4705,144.14,144.1,14.1213]
[1728441444067,3.4705,144.14,144.11,2.6999]
[1728441445274,3.4703,144.15,144.11,6.1709]
[1728441445473,5.06,144.16,144.11,2.6999]
[1728441446374,3.4704,144.14,144.11,2.6999]
[1728441446873,5.06,144.16,144.12,10.65]
[1728441447474,5.06,144.16,144.11,2.6999]
[1728441448067,15.71,144.16,144.11,2.6999]
[1728441448369,3.4705,144.14,144.11,2.6999]
[1728441454477,3.4705,144.14,144.11,13.3499]
[1728441460484,10.65,144.15,144.11,2.6999]
[1728441460683,3.4708,144.12,144.11,2.6999]
[1728441460987,10.65,144.14,144.08,10.65]
[1728441461187,3.4711,144.11,144.08,10.65]
[1728441462085,3.4711,144.11,144.07,11.2672]
[1728441462386,3.4711,144.11,144.08,10.65]
[1728441464182,3.4711,144.11,144.09,10.65]
[1728441473102,5.06,144.16,144.1,10.65]
[1728441473300,5.06,144.16,144.09,3.4715]
[1728441473301,5.06,144.16,144.12,10.65]
[1728441473892,5.06,144.16,144.13,10.65]
[1728441474092,5.06,144.16,144.07,7.7953]
[1728441474296,5.06,144.16,144.12,10.65]
[1728441474607,3.4702,144.15,144.12,10.65]
[1728441479509,3.4702,144.15,144.13,10.65]
[1728441480303,3.47,144.16,144.13,10.65]
[1728441484304,0.12502,144.17,144.15,10.65]
[1728441485715,0.12502,144.17,144.13,5.02]
[1728441485902,0.12502,144.17,144.14,10.65]
[1728441486517,0.12502,144.17,144.12,18.4965]
[1728441487013,0.12502,144.17,144.12,7.8465]
[1728441487217,3.4703,144.15,144.12,18.4965]
[1728441488117,3.4706,144.13,144.12,2.8265]
[1728441489720,3.4706,144.13,144.11,11.9948]
[1728441489922,3.4706,144.13,144.1,5.02]
[1728441489923,3.471,144.12,144.1,5.02]
[1728441490425,10.65,144.14,144.09,10.65]
[1728441490611,10.65,144.14,144.08,10.65]
[1728441491421,10.65,144.13,144.06,4.1235]
[1728441491719,10.65,144.13,144.07,10.65]
[1728441491916,3.4717,144.09,144.07,10.65]
[1728441492525,15.67,144.13,144.07,10.65]
[1728441492724,3.4714,144.1,144.08,10.65]
[1728441493822,3.4716,144.09,144.08,10.65]
[1728441495920,15.67,144.13,144.08,10.65]
[1728441495921,5.02,144.13,144.08,10.65]
[1728441496120,3.4714,144.1,144.09,10.65]
[1728441497022,3.4714,144.1,144.06,7.5956]
[1728441497221,3.4716,144.09,144.08,10.65]
[1728441497615,5.02,144.13,144.08,10.65]
[1728441497824,3.4715,144.1,144.08,10.65]
[1728441499415,3.49435297,144.12,144.08,10.65]
[1728441499616,3.4716,144.09,144.08,10.65]
[1728441501231,3.49435297,144.12,144.07,10.65]
[1728441503638,3.4715,144.1,144.08,10.65]
[1728441505738,3.4715,144.1,144.07,10.65]
[1728441505940,3.4712,144.11,144.07,14.122]
[1728441507842,3.41971163,144.12,144.07,14.122]
[1728441508038,3.4713,144.1,144.07,10.65]
[1728441510748,3.4713,144.1,144.07,14.122]
[1728441511339,3.4712,144.11,144.07,14.122]
[1728441512240,6.91903565,144.11,144.07,14.122]
[1728441512639,3.4709,144.12,144.09,14.1215]
[1728441512838,5.02,144.13,144.1,10.65]
[1728441513350,3.4709,144.12,144.1,10.65]
[1728441513948,5.02,144.13,144.1,10.65]
[1728441514248,10.65,144.15,144.1,10.65]
[1728441514249,15.67,144.15,144.1,10.65]
[1728441514434,3.4708,144.12,144.1,10.65]
[1728441514639,10.65,144.15,144.1,10.65]
[1728441514839,15.67,144.15,144.1,10.65]
[1728441515043,3.4709,144.12,144.1,10.65]
[1728441515243,10.65,144.14,144.08,10.65]
[1728441515750,3.4711,144.12,144.08,10.65]
[1728441518345,5.02,144.15,144.1,10.65]
[1728441518951,3.4708,144.13,144.1,10.65]
[1728441519151,5.02,144.15,144.1,10.65]
[1728441519355,10.65,144.14,144.1,10.65]
[1728441520452,3.4709,144.12,144.1,10.65]
[1728441522151,3.4709,144.12,144.08,3.4718]
[1728441522152,3.4709,144.12,144.08,14.1218]
[1728441524355,3.4709,144.12,144.1,10.65]
[1728441535272,15.67,144.15,144.1,10.65]
[1728441535474,3.4707,144.13,144.1,10.65]
[1728441535875,3.4707,144.13,144.1,14.1213]
[1728441536372,3.4705,144.14,144.11,10.65]
[1728441536573,10.65,144.16,144.12,10.65]
[1728441536877,5.14502,144.17,144.12,10.65]
[1728441538363,3.4703,144.15,144.12,10.65]
[1728441538763,5.14502,144.17,144.12,10.65]
[1728441538971,3.59482,144.17,144.13,10.65]
[1728441539765,3.59482,144.17,144.13,14.1205]
[1728441540073,0.12502,144.17,144.15,10.65]
[1728441541572,0.12502,144.17,144.14,10.65]
[1728441541970,3.59472,144.17,144.14,10.65]
[1728441542171,0.12502,144.17,144.14,10.65]
[1728441542985,3.47,144.16,144.14,10.65]
[1728441544176,3.59472,144.17,144.14,10.65]
[1728441549082,3.4699,144.16,144.12,4.8357]
[1728441549285,3.4699,144.16,144.12,15.4857]
[1728441551492,0.12502,144.17,144.12,15.4857]
[1728441551790,3.4702,144.15,144.12,15.4857]
[1728441554788,3.4702,144.15,144.14,10.65]
[1728441554996,3.4699,144.16,144.14,10.65]
[1728441557800,0.12502,144.17,144.14,10.65]
[1728441558101,3.59472,144.17,144.14,10.65]
[1728441561093,3.59332,144.23,144.19,3.469]
[1728441561302,0.12502,144.23,144.21,10.65]
[1728441564104,0.12502,144.23,144.22,10.65]
[1728441566500,0.12502,144.23,144.22,14.1184]
[1728441566709,0.12502,144.23,144.22,19.1384]
[1728441568513,3.467,144.28,144.24,3.4679]
[1728441568813,3.467,144.28,144.26,10.65]
[1728441572607,3.4674,144.27,144.22,8.4883]
[1728441572813,3.4674,144.27,144.24,10.65]
[1728441573016,3.52002693,144.29,144.25,10.65]
[1728441573517,3.4672,144.28,144.25,10.65]
[1728441574113,3.4672,144.27,144.25,10.65]
[1728441576514,3.4672,144.27,144.24,15.67]
[1728441577323,3.4675,144.26,144.24,15.67]
[1728441579220,3.4675,144.26,144.25,10.65]
[1728441579620,3.4673,144.27,144.25,10.65]
[1728441580118,3.4673,144.27,144.25,15.67]
[1728441582123,3.4673,144.27,144.25,10.65]
[1728441584024,3.4673,144.27,144.25,15.67]
[1728441584215,10.65,144.26,144.22,10.65]
[1728441584414,10.65,144.26,144.22,15.67]
[1728441584826,3.4681,144.24,144.22,15.67]
[1728441588726,3.4681,144.24,144.22,5.02]
[1728441589022,3.4681,144.24,144.22,15.67]
[1728441589926,3.4681,144.24,144.23,10.65]
[1728441594327,3.4686,144.22,144.2,1.3026]
[1728441594527,8.54002693,144.29,144.2,1.3026]
[1728441594528,10.65,144.25,144.2,1.3026]
[1728441595725,3.4681,144.24,144.2,1.3026]
[1728441595928,10.65,144.25,144.2,1.3026]
[1728441596129,10.65,144.25,144.21,10.65]
[1728441597232,3.4684,144.22,144.21,10.65]
[1728441597437,10.65,144.25,144.21,10.65]
[1728441597636,10.65,144.25,144.2,1.3026]
[1728441597837,10.65,144.25,144.21,10.65]
[1728441599239,3.4684,144.23,144.21,10.65]
[1728441602938,3.4689,144.21,144.17,3.59452]
[1728441603140,10.65,144.24,144.19,10.65]
[1728441603641,3.4682,144.23,144.2,10.65]
[1728441605443,5.02,144.26,144.2,10.65]
[1728441605639,3.4684,144.22,144.2,10.65]
[1728441605844,10.65,144.25,144.2,10.65]
[1728441606039,5.02,144.26,144.21,10.65]
[1728441606243,97.06684635,144.27,144.23,10.65]
[1728441606244,3.4677,144.25,144.23,10.65]
[1728441607544,3.4675,144.26,144.23,10.65]
[1728441608736,102.08684635,144.27,144.23,10.65]
[1728441608945,3.4678,144.25,144.23,10.65]
[1728441611656,3.4674,144.27,144.24,10.65]
[1728441611854,3.52002693,144.29,144.25,10.65]
[1728441612052,0.12502,144.29,144.25,10.65]
[1728441612257,0.12502,144.29,144.26,10.65]
[1728441613149,0.12502,144.29,144.25,10.65]
[1728441613666,3.4675,144.26,144.25,10.65]
[1728441613859,3.4675,144.26,144.24,5.02]
[1728441614066,10.77502,144.29,144.24,5.02]
[1728441615355,3.4674,144.27,144.24,5.02]
[1728441618467,3.4672,144.28,144.25,10.65]
[1728441619059,3.4673,144.27,144.25,10.65]
[1728441620971,3.59192,144.29,144.26,10.65]
[1728441621158,0.12502,144.29,144.27,10.65]
[1728441622561,0.12502,144.29,144.27,19.1172]
[1728441626672,0.12502,144.29,144.27,5.0]
[1728441627565,0.12502,144.29,144.28,10.65]
[1728441627766,0.12502,144.29,144.27,5.0]
[1728441627968,0.12502,144.29,144.27,15.65]
[1728441632381,0.12502,144.29,144.28,10.65]
[1728441633176,3.59202,144.29,144.27,6.4224]
[1728441636987,0.12502,144.29,144.28,10.65]
[1728441638286,3.59182,144.29,144.28,10.65]
[1728441638789,3.467,144.28,144.27,1.4224]
[1728441639376,0.12502,144.29,144.27,1.4224]
[1728441639582,3.59182,144.29,144.27,1.4224]
[1728441642388,3.59182,144.29,144.27,12.0724]
[1728441642593,0.12502,144.29,144.27,12.0724]
[1728441643087,0.12502,144.29,144.27,15.5395]
[1728441644490,0.12502,144.29,144.27,12.0724]
[1728441644681,3.59182,144.29,144.27,12.0724]
[1728441645685,3.467,144.28,144.27,1.4224]
[1728441646289,3.467,144.28,144.26,10.65]
[1728441646788,10.77502,144.29,144.24,5.0]
[1728441647490,3.4676,144.26,144.24,5.0]
[1728441647693,10.77502,144.29,144.23,1.3484]
[1728441647879,10.77502,144.29,144.23,11.9984]
[1728441648190,3.468,144.24,144.23,1.3484]
[1728441653788,15.65,144.28,144.23,1.3484]
[1728441654091,15.65,144.28,144.23,11.9984]
[1728441654292,5.0,144.28,144.23,11.9984]
[1728441656100,5.0,144.28,144.24,10.65]
[1728441656591,3.4673,144.27,144.24,10.65]
[1728441657289,3.4674,144.27,144.24,10.65]
[1728441657890,3.4675,144.26,144.24,10.65]
[1728441658795,3.4675,144.26,144.23,11.9984]
[1728441659997,3.4673,144.27,144.23,11.9984]
[1728441660292,3.4673,144.27,144.23,15.4665]
[1728441660483,3.4673,144.27,144.23,20.4665]
[1728441661094,3.4673,144.27,144.25,10.65]
[1728441661295,0.12502,144.29,144.25,10.65]
[1728441661486,3.4671,144.28,144.25,10.65]
[1728441662494,3.4673,144.27,144.25,10.65]
[1728441663093,0.12502,144.29,144.26,3.4675]
[1728441663294,0.12502,144.29,144.25,10.65]
[1728441663797,3.59202,144.29,144.25,10.65]
[1728441664197,3.59202,144.29,144.26,10.65]
[1728441665602,3.59182,144.29,144.26,10.65]
[1728441666598,0.12502,144.29,144.27,10.65]
[1728441667705,0.12502,144.29,144.27,14.1172]
[1728441668703,0.12502,144.29,144.27,10.65]
[1728441669403,0.12502,144.29,144.28,10.65]
[1728441670906,0.12502,144.29,144.28,14.117]
[1728441672303,0.12502,144.29,144.28,10.65]
[1728441675713,0.12502,144.35,144.28,12.0322]